[Event "US Masters 2022"]
[Site "Charlotte"]
[Date "2022.11.24"]
[Round "1.18"]
[White "Kanli, Alperen"]
[Black "Macieja, Bartlomiej"]
[Result "0-1"]
[ECO "A40"]
[WhiteElo "2171"]
[BlackElo "2514"]
[Annotator "TA"]
[PlyCount "84"]
[EventDate "2022.11.23"]
[EventType "swiss"]
[EventCountry "USA"]
[SourceTitle "playchess.com"]
[Source "ChessBase"]
[SourceQuality "1"]
[TimeControl "5400+30"]

{[%evp 12,84,54,57,70,70,72,44,30,31,50,40,36,41,39,29,38,25,41,10,70,43,56,50,62,50,168,0,28,-18,-11,-22,0,0,14,-48,-49,-219,-210,-182,-113,-137,-118,-130,-94,-80,434,428,427,416,417,412,368,190,184,0,11259,5192,2032,0,0,0,0,0,0,0,0,0,0,0,0,0,0,-29973,-287]} 1. d4 {[%emt 0:00:02]} g6 {[%emt 0:01:30]} 2. c4 {[%emt 0:00:13]} Bg7 {[%emt 0:00:02]} 3. Nc3 {[%emt 0:00:09]} c5 {[%emt 0:00:07]} 4. d5 {[%emt 0:01:14]} Bxc3+ {[%emt 0:00:17]} 5. bxc3 {[%emt 0:00:56]} f5 {[%emt 0:00:03]} 6. e4 {[%emt 0:06:19]} fxe4 {[%emt 0:00:38]} 7. f3 {[%emt 0:01:47]} e5 {[%emt 0:00:07] A40: Unusual replies to 1 d4.} 8. Nh3 {[%emt 0:13:47][%cal Bg1h3,Bh3g5,Bg5f3][%mdl 32]} (8. fxe4 $6 Qh4+ 9. Kd2 (9. g3 Qxe4+ 10. Qe2 Qxe2+ 11. Bxe2 d6 $15) 9... Qxe4 $11) 8... d6 {[%emt 0:02:56] [#]} 9. Ng5 $146 {[%emt 0:12:39]} (9. fxe4 Bxh3 10. gxh3 Qh4+ 11. Kd2 Nf6 $17) ({Predecessor:} 9. Nf2 Nf6 10. fxe4 Qe7 11. Be2 h6 12. O-O Nbd7 13. Rb1 Qg7 14. Be3 O-O 15. Qc1 {½-½ (32) Demakov,V (2436)-Szymanski,R (2442) ICCF email 2014}) 9... Nf6 {[%emt 0:35:44] White is slightly better.} 10. fxe4 {[%emt 0:01:19]} (10. Nxe4 Nxe4 11. fxe4 Qh4+ 12. Kd2 Qxe4 $17) 10... O-O {[%emt 0:09:02]} 11. Be2 {[%emt 0:04:10]} h6 {[%emt 0:09:31]} 12. Nf3 {[%emt 0:01:56]} Kg7 {[%emt 0:01:25]} (12... Nxe4 13. Bxh6 Rxf3 14. Bxf3 Qh4+ 15. g3 Qxh6 16. Bxe4 $16) 13. Qd2 {[%emt 0:17:55]} Ng8 {[%emt 0:11:05]} 14. h3 {[%emt 0:06:32]} Nd7 {[%emt 0:00:18]} 15. g4 {[%emt 0:02:26]} Qa5 {[%emt 0:03:04]} (15... Rf7 $11) 16. Qd3 {[%emt 0:06:17]} (16. O-O {with more complications.} Nb6 17. Qe3 Bd7 18. Bd2) 16... Nb6 {[%emt 0:00:01]} 17. Bd2 {[%emt 0:00:17]} Bd7 {[%emt 0:00:17]} 18. O-O {[%emt 0:02:58]} Rf7 {[%emt 0:00:41]} (18... Nc8 $1 $14) 19. Rf2 $2 {[%emt 0:10:55]} (19. g5 $1 $18 {[%cal Of3e5] Strongly threatening Nxe5!} h5 20. Nd4 $1 Rxf1+ 21. Rxf1) 19... Raf8 {[%emt 0:00:06]} 20. Kg2 {[%emt 0:00:33]} (20. Rh2 {feels stronger.}) 20... g5 $11 {[%emt 0:12:04]} (20... h5 $2 21. gxh5 gxh5 22. Kh2 $18) 21. h4 {[%emt 0:03:34]} gxh4 {[%emt 0:08:57]} (21... Bxg4 $5 {[%cal Rg5h4]} 22. hxg5 h5 $11) 22. Kh2 {[%emt 0:00:24]} Ne7 {[%emt 0:01:27]} (22... Bxg4 23. Rg2 h5 24. Ng5 $18 (24. Nxh4 Nf6 $16)) 23. Rg2 {[%emt 0:01:40]} (23. g5 $11 h5 24. g6 Nxg6 25. Rg2) 23... Ng6 $1 $15 {[%emt 0:00:04]} 24. Kh3 $2 {[%emt 0:01:17] [#]} (24. Ng1 $15) 24... Nxc4 $1 $19 {[%emt 0:02:20][%mdl 512]} 25. Qxc4 {[%emt 0:00:35] [#]} Rxf3+ {[%emt 0:00:01]} (25... Bb5 $1 $19 {[%mdl 512]} 26. Qxb5 Qxb5 27. Bxb5 Rxf3+ 28. Kh2 h3) 26. Bxf3 $17 {[%emt 0:00:08]} Rxf3+ {[%emt 0:00:00]} 27. Kh2 {[%emt 0:00:17] Hoping for Qe2.} Bb5 {[%emt 0:01:36] Black is more active.} 28. Qb3 {[%emt 0:00:01]} Bf1 $2 {[%emt 0:00:35][%mdl 8192] Against g5. Really sharp!} (28... Ba6 $17 {and life is bright.} 29. c4 Rxb3 30. Bxa5 Re3) 29. Qxb7+ $18 {[%emt 0:01:10]} (29. Rxf1 Rxf1 30. Qxb7+ Rf7 31. Bxh6+ Kg8 32. Qb8+ Kh7 $11) 29... Rf7 {[%emt 0:00:01] [#]} 30. Bxh6+ $1 {[%emt 0:00:44]} Kxh6 {[%emt 0:00:41]} 31. Qxf7 {[%emt 0:00:27]} Bxg2 {[%emt 0:01:20]} 32. g5+ {[%emt 0:01:30]} (32. Kxg2 $142 {[%cal Og4g5] aiming for g5+!} Qd8 33. Rg1 (33. Qxa7 h3+ 34. Kh2 Qf6 $11)) 32... Kxg5 {[%emt 0:00:00]} (32... Kh5 33. Kxg2 (33. Rg1 h3 $11) 33... Qxc3 34. Qh7+ (34. Rg1 Qg3+ 35. Kf1 Qf4+ 36. Qxf4 exf4 $17) 34... Kg4 35. Rg1 Qg3+ 36. Kh1 Kxg5 37. Rxg3+ $18) 33. Kxg2 $2 {[%emt 0:00:02]} ({Only move:} 33. Qf5+ $18 Kh6 34. Kxg2 Nf4+ 35. Kf2 Qxc3 36. Qf8+ Kh7 37. Qe7+ Kh6 38. Qxh4+ Nh5 39. Rf1 (39. Rh1 Qd2+ 40. Kg1 Qd1+ 41. Kh2 Qe2+ 42. Kg1 Qd1+ 43. Kh2 Qe2+ 44. Kg1 Qd1+ $11)) 33... Qxc3 $4 {[%emt 0:00:00][%mdl 12288] Endgame KQR-KQN} (33... Nf4+ $11 34. Kh1 Kg4 35. Qg7+ (35. Rg1+ $2 Kf3 $19) 35... Kf3 36. Rf1+ Kxe4 37. Qh7+ Kxd5 38. Qf7+ Kc6 39. Qe8+ Kd5 40. Qf7+ Kc6 41. Qe8+ Kd5 42. Qf7+) 34. Rg1 {[%emt 0:00:02] White wants to mate with Kf2+.} Kh6 {[%emt 0:00:10] [#]} 35. Kh2 $2 {[%emt 0:01:13]} (35. Qf5 $1 $18 {Kh2 would kill now.} Nf4+ 36. Kh2 Qh3+ 37. Qxh3 Nxh3 38. Kxh3 Kh5 39. Rg7 a5 40. Rd7) 35... Qc2+ $11 {[%emt 0:00:16]} 36. Rg2 {[%emt 0:00:22][%csl Gg2][%cal Rf7g6]} Qxe4 {[%emt 0:00:02]} 37. Qe6 {[%emt 0:00:35]} Kh5 {[%emt 0:01:59][%cal Oe4g2] ( -> ...Qxg2+!)} 38. Qg8 {[%emt 0:01:27][%cal Rg8h7]} Kh6 {[%emt 0:01:03] Inhibits Qh7+.} 39. Qe6 {[%emt 0:00:23]} c4 {[%emt 0:00:00]} 40. Rg4 {[%emt 0:01:17]} Qc2+ {[%emt 0:00:22]} 41. Kh1 {[%emt 0:00:31]} Kh5 {[%emt 0:00:32] And now ...Nf4 would win.} 42. Rg2 $2 {[%emt 0:00:14][%mdl 8192] [#]} (42. Rg1 $11) 42... Qxg2+ $3 {[%emt 0:00:20][%mdl 512] What a fight!   Weighted Error Value: White=0.59/Black=0.31} 0-1

[Event "US Masters 2022"]
[Site "Charlotte"]
[Date "2022.11.24"]
[Round "1.19"]
[White "Druska, Juraj"]
[Black "Matta, Nicholas"]
[Result "1-0"]
[ECO "C47"]
[WhiteElo "2511"]
[BlackElo "2167"]
[Annotator "TA"]
[PlyCount "89"]
[EventDate "2022.11.23"]
[EventType "swiss"]
[EventCountry "USA"]
[SourceTitle "playchess.com"]
[Source "ChessBase"]
[SourceQuality "1"]
[TimeControl "5400+30"]

{[%evp 23,89,18,14,18,23,1,1,1,20,18,24,19,39,35,57,54,63,53,54,62,106,115,110,118,116,113,124,116,120,106,113,116,112,115,112,115,114,92,112,102,110,97,162,160,159,166,164,167,515,489,520,522,761,731,29964,11624,29969,29970,5312,5312,29990,813,2160,2186,2014,1822,1945,1817]} 1. e4 {[%emt 0:01:19]} e5 {[%emt 0:00:10]} 2. Nf3 {[%emt 0:00:12]} Nf6 {[%emt 0:00:11]} 3. Nc3 {[%emt 0:05:23]} Nc6 {[%emt 0:00:18]} 4. d4 {[%emt 0:00:23]} exd4 {[%emt 0:00:18]} 5. Nxd4 {[%emt 0:00:02]} Bb4 {[%emt 0:00:20]} 6. Nxc6 {[%emt 0:00:04]} bxc6 {[%emt 0:00:07]} 7. Bd3 {[%emt 0:00:03]} d5 {[%emt 0:00:26]} 8. exd5 {[%emt 0:00:04]} cxd5 {[%emt 0:01:06]} 9. O-O {[%emt 0:00:08]} O-O {[%emt 0:00:13]} 10. Bg5 {[%emt 0:00:18]} c6 {[%emt 0:00:18]} 11. Qf3 {[%emt 0:00:05]} Be7 {[%emt 0:01:16]} 12. h3 {[%emt 0:00:26]} h6 {[%emt 0:03:39]} 13. Bf4 {[%emt 0:00:06] C47: Scotch Four Knights and Four Knights with 4 g3.} Bd6 {[%emt 0:00:44]} 14. Rad1 {[%emt 0:00:28] Recently 14.b3 got a lot of attention.} Rb8 {[%emt 0:07:33]} 15. b3 {[%emt 0:01:27] The position is equal.} Rb4 {[%emt 0:04:36]} 16. Bxd6 {[%emt 0:00:08]} Qxd6 {[%emt 0:00:06]} 17. Rfe1 {[%emt 0:08:57] [#]} Bd7 $146 {[%emt 0:07:25]} ({Predecessor:} 17... Rf4 18. Qe2 Rh4 19. Qe5 Qb4 20. Na4 Rh5 21. Qe7 Qh4 22. Re5 Bxh3 23. gxh3 Qxh3 24. Rxh5 Qg4+ {0-1 (23) Anton Guijarro,D (2688)-Tang,A (2538) chess24.com INT 2020}) 18. Qe3 {[%emt 0:05:03]} c5 {[%emt 0:14:27] [#]} 19. Bc4 $1 {[%emt 0:38:26][%cal Rc3d5]} Bc6 {[%emt 0:13:50] [#]} (19... Re8 20. Qd2 $16) 20. Nxd5 $1 {[%emt 0:13:35]} Bxd5 {[%emt 0:10:22]} 21. c3 {[%emt 0:00:12]} Rb6 {[%emt 0:09:01] [#]} 22. Bxd5 {[%emt 0:01:15]} Nxd5 {[%emt 0:01:47]} 23. Qf3 {[%emt 0:00:02]} Qf6 {[%emt 0:01:24] ...Qxf3 is the strong threat.} 24. Rxd5 {[%emt 0:01:07]} Qxf3 {[%emt 0:01:03]} 25. gxf3 $16 {[%emt 0:00:02][%mdl 4096] Endgame KRR-KRR} c4 {[%emt 0:01:23] [#]} 26. b4 {[%emt 0:04:15] White is more active.} Ra6 {[%emt 0:01:39]} 27. Re2 {[%emt 0:05:01]} Ra3 {[%emt 0:01:47]} 28. Rc2 {[%emt 0:00:06]} Rc8 {[%emt 0:00:34]} 29. f4 {[%emt 0:00:48]} Rc6 {[%emt 0:00:45]} 30. Rd4 {[%emt 0:06:00]} g6 {[%emt 0:03:51]} 31. Kg2 {[%emt 0:00:10]} Kg7 {[%emt 0:00:44]} 32. Kf3 {[%emt 0:01:30]} a5 {[%emt 0:04:59]} (32... f5 $16 {might work better.}) 33. b5 $18 {[%emt 0:00:04][%cal Bb4b5,Bb5b6][%mdl 32]} Rc5 {[%emt 0:00:17]} 34. b6 {[%emt 0:00:38]} Rb5 {[%emt 0:00:37]} 35. Rd6 {[%emt 0:01:55][%cal Of4f5]} (35. Rxc4 $6 Rxb6 36. Kg2 Rd6 $11) 35... Kf8 $2 {[%emt 0:00:31]} (35... a4 36. Rc6 Rab3) 36. Ke4 {[%emt 0:00:36]} Ke7 {[%emt 0:00:44]} 37. Rc6 {[%emt 0:00:02]} a4 {[%emt 0:03:49]} 38. Kd4 {[%emt 0:00:42]} (38. Rxc4 Rxb6 39. f5 gxf5+ 40. Kxf5 Rb5+ 41. Kf4 Rh5 $16) 38... Rab3 {[%emt 0:01:51]} 39. axb3 {[%emt 0:04:02]} cxb3 {[%emt 0:00:05]} 40. Re2+ {[%emt 0:00:02]} Kd7 {[%emt 0:00:17]} 41. Rc7+ {[%emt 0:00:23]} Kd8 {[%emt 0:01:11]} 42. Ra7 {[%emt 0:00:20]} (42. Ree7 $142 Rxb6 43. Rxf7 Rd6+ 44. Ke5 Ra6 45. Rfd7+ Ke8 46. Rh7 Kd8 47. Rcg7 Ra5+ 48. Kd4 Rd5+ 49. Kxd5 h5 50. Rh8#) 42... b2 {[%emt 0:00:49] [#] White is clearly winning.} 43. Rxb2 $3 {[%emt 0:00:10]} Rxb2 {[%emt 0:00:05]} 44. Kc5 {[%emt 0:00:03]} (44. Rxa4 Rxb6 45. f5 Ke7 $16) 44... Rb3 {[%emt 0:01:16]} 45. c4 {[%emt 0:00:11] Weighted Error Value: White=0.05 (flawless) /Black=0.83} (45. Rxf7 Rxc3+ 46. Kb5 (46. Kd6 Kc8 $14) 46... Rb3+ 47. Kc6 (47. Kxa4 Rxb6 48. Rh7 Rb2 $11) 47... Rc3+ 48. Kb7 (48. Kd6 Kc8 $14) 48... a3 49. Rf8+ Kd7 $18) 1-0

[Event "US Masters 2022"]
[Site "Charlotte"]
[Date "2022.11.24"]
[Round "1.20"]
[White "Canty, James"]
[Black "Ghaemmaghami, Ehsan"]
[Result "1-0"]
[ECO "B81"]
[WhiteElo "2158"]
[BlackElo "2511"]
[Annotator "TA"]
[PlyCount "43"]
[EventDate "2022.11.23"]
[EventType "swiss"]
[EventCountry "USA"]
[SourceTitle "playchess.com"]
[Source "ChessBase"]
[SourceQuality "1"]
[TimeControl "5400+30"]

{[%evp 13,43,31,35,7,18,15,29,-16,-10,-16,-10,-40,1,-14,12,15,41,51,55,50,143,42,452,452,445,442,529,525,499,517,450,424]} 1. e4 {[%emt 0:13:54]} c5 {[%emt 0:02:06]} 2. Nf3 {[%emt 0:00:03]} e6 {[%emt 0:00:25]} 3. d4 {[%emt 0:00:07]} cxd4 {[%emt 0:00:05]} 4. Nxd4 {[%emt 0:00:04]} Nf6 {[%emt 0:00:32]} 5. Nc3 {[%emt 0:00:53]} d6 {[%emt 0:00:06]} 6. g4 {[%emt 0:00:34]} h6 {[%emt 0:01:04]} 7. h4 {[%emt 0:00:03]} Nc6 {[%emt 0:01:50]} 8. Nxc6 {[%emt 0:02:41] B81: Sicilian Scheveningen: Keres Attack.} bxc6 {[%emt 0:00:07]} 9. Qf3 {[%emt 0:00:04]} Rb8 {[%emt 0:10:07] [#]} 10. b3 $146 {[%emt 0:08:52] White has an edge.} ({Predecessor:} 10. g5 hxg5 11. hxg5 Rxh1 12. Qxh1 Nd7 13. Bc4 Rb4 14. Bb3 Nc5 15. Be3 Qa5 16. O-O-O {1-0 (37) Beaudry,L-Voloaca,M (2071) Montreal 2001}) 10... d5 {[%emt 0:09:37]} 11. exd5 {[%emt 0:10:47]} exd5 {[%emt 0:06:19] And now ...Bb4 would win.} 12. g5 {[%emt 0:02:55]} ({Of course not} 12. Bf4 Qe7+ 13. Be2 Bxg4 $17) (12. Bh3 $5) 12... Ng4 {[%emt 0:04:28]} 13. Bf4 {[%emt 0:02:08]} (13. Bh3 $5 {[%cal Rh3g4]} h5 14. Bf4 $11) 13... Bd6 {[%emt 0:00:18] Hoping for ...Qe7+.} 14. O-O-O {[%emt 0:02:12]} O-O {[%emt 0:00:44]} 15. Qg3 $1 {[%emt 0:09:40][%csl LRd6,LRh6]} Bxf4+ {[%emt 0:05:01]} 16. Qxf4 {[%emt 0:00:05]} Qb6 {[%emt 0:00:07] [#]} (16... Be6 $14) 17. gxh6 {[%emt 0:02:40] White is more active.} (17. Rd4 $1 $16) 17... Qxf2 {[%emt 0:03:32][%mdl 8192] Loses the game.} ({Black should try} 17... Qb4 $1 $14 18. Qxb4 Rxb4) 18. h7+ $18 {[%emt 0:01:58] White is clearly winning.} ({Stronger than} 18. Qxb8 Bf5 $17) 18... Kh8 {[%emt 0:15:34]} 19. Qxb8 {[%emt 0:01:26] aiming for Qd6.} Ne3 {[%emt 0:10:04][%csl Ge3][%cal Rf2c2] [#]} 20. Bd3 {[%emt 0:00:56][%cal Ob8d6] Black must now prevent Qd6!} Nxd1 {[%emt 0:01:21]} 21. Rxd1 {[%emt 0:00:41]} ({But not} 21. Nxd1 Qc5 22. Qf4 Qe7 $18) 21... Qc5 {[%emt 0:00:31]} 22. Ne2 {[%emt 0:03:46] Weighted Error Value: White=0.22 (precise) /Black=0.69} 1-0

[Event "US Masters 2022"]
[Site "Charlotte"]
[Date "2022.11.24"]
[Round "1.21"]
[White "Escobar Forero, Alder"]
[Black "Wan, Joseph"]
[Result "1-0"]
[ECO "C19"]
[WhiteElo "2510"]
[BlackElo "2153"]
[Annotator "TA"]
[PlyCount "159"]
[EventDate "2022.11.23"]
[EventType "swiss"]
[EventCountry "USA"]
[SourceTitle "playchess.com"]
[Source "ChessBase"]
[SourceQuality "1"]
[TimeControl "5400+30"]

{[%evp 19,159,0,0,-8,-7,-4,24,21,19,25,14,11,28,9,37,46,74,45,71,25,45,33,33,11,11,11,11,11,11,11,11,11,11,11,12,12,12,12,12,12,12,12,12,12,12,0,28,0,0,-119,-16,-110,0,-135,0,-99,0,-139,0,-71,-56,-120,0,0,0,0,113,45,131,95,88,87,79,94,80,0,5,0,135,133,206,195,196,0,187,190,214,115,117,0,202,137,142,112,123,96,177,155,121,127,157,134,240,235,228,238,219,202,188,74,299,286,388,393,534,525,676,662,614,287,1530,1521,1494,1429,1477,1431,5077,5085,29971,29970,29967,29967,29981,29979,29987,29986,29986,29987,29987,29988,29988,29989]} 1. e4 {[%emt 0:00:07]} e6 {[%emt 0:00:13]} 2. d4 {[%emt 0:00:06]} d5 {[%emt 0:00:02]} 3. Nc3 {[%emt 0:00:17]} Bb4 {[%emt 0:02:11]} 4. e5 {[%emt 0:00:08]} c5 {[%emt 0:00:02]} 5. a3 {[%emt 0:00:06]} Bxc3+ {[%emt 0:00:07]} 6. bxc3 {[%emt 0:00:06]} Ne7 {[%emt 0:00:05]} 7. a4 {[%emt 0:00:11]} Qa5 {[%emt 0:01:32]} 8. Bd2 {[%emt 0:00:45]} Nbc6 {[%emt 0:02:27]} 9. Nf3 {[%emt 0:01:22]} Bd7 {[%emt 0:01:42]} 10. Bb5 {[%emt 0:03:30]} a6 {[%emt 0:01:31]} 11. Bd3 {[%emt 0:02:33] C19: French: 3 Nc3 Bb4: Main line: 7 Nf3 and 7 a4.} c4 {[%emt 0:02:29]} 12. Be2 {[%emt 0:00:22]} O-O-O {[%emt 0:00:37]} 13. O-O {[%emt 0:00:57] White has an edge.} f6 {[%emt 0:03:54] [#]} 14. Qc1 $146 {[%emt 0:10:16]} ({Predecessor:} 14. exf6 gxf6 15. Qb1 Rhg8 16. Qb2 Kb8 17. Rfb1 Bc8 18. Bf4+ Ka7 19. Nd2 Ng6 20. Bg3 {1-0 (35) Mkrtchian,L (2388)-Volovich,V (2177) Chess.com INT 2020}) 14... Ng6 {[%emt 0:07:33]} 15. Qa3 {[%emt 0:08:33]} Qc7 {[%emt 0:04:50][%cal Rf6e5]} 16. Rfb1 {[%emt 0:02:19]} Rhf8 {[%emt 0:15:56][%cal Rf6e5]} 17. Be3 {[%emt 0:08:15]} Nb8 {[%emt 0:07:22]} 18. Nd2 {[%emt 0:24:24]} Bc6 {[%emt 0:12:13]} 19. f4 {[%emt 0:02:57]} (19. Bh5 $16) 19... Qe7 {[%emt 0:10:30]} 20. Bg4 {[%emt 0:23:27] aiming for Qxe7.} (20. Qxe7 {simplifies} Nxe7 21. Nf3 Nf5 22. Bc1) 20... f5 {[%emt 0:04:03]} 21. Be2 {[%emt 0:00:39]} (21. Bh5 $5 {[%cal Rd2f3]}) 21... Qxa3 {[%emt 0:05:57]} 22. Rxa3 {[%emt 0:00:01]} a5 {[%emt 0:00:33]} 23. Ra2 {[%emt 0:02:47]} Kc7 {[%emt 0:07:20]} 24. Nf3 {[%emt 0:00:18] Hoping for Ng5.} h6 {[%emt 0:00:02] Prevents Ng5.} 25. Bc1 {[%emt 0:00:05]} (25. Rab2 {looks sharper.} Nd7 26. Kf2 Rg8 27. Bd2) 25... Rg8 {[%emt 0:01:15]} 26. g3 {[%emt 0:03:41]} Ne7 {[%emt 0:00:37]} 27. Kf2 {[%emt 0:00:56]} Nd7 {[%emt 0:00:25]} 28. h3 {[%emt 0:01:43]} Nb6 {[%emt 0:01:40]} 29. Rba1 $1 {[%emt 0:00:18]} (29. Ba3 Nec8 $15) 29... Ra8 {[%emt 0:02:50]} 30. Ne1 {[%emt 0:01:08]} g6 {[%emt 0:01:53]} 31. Nf3 {[%emt 0:01:00]} Nec8 {[%emt 0:01:08]} 32. g4 {[%emt 0:00:51]} Ne7 {[%emt 0:00:09]} 33. Ba3 {[%emt 0:00:13]} (33. g5 $5 {[%cal Rg5h6]}) 33... Nec8 {[%emt 0:00:01]} 34. Bc5 {[%emt 0:00:38]} (34. Bb2 $11) 34... Ra6 {[%emt 0:01:23]} (34... Nd7 $6 35. Ba3 $11) (34... Nxa4 $17 35. Rxa4 Bxa4 36. Rxa4 fxg4 37. hxg4 b6) 35. Ke3 {[%emt 0:01:01]} (35. g5 $11) 35... Ra8 {[%emt 0:01:00]} (35... Nxa4 $1 $17 36. Rxa4 Bxa4 37. Rxa4 fxg4 38. hxg4 b6 39. Bd6+ Nxd6 40. exd6+ Kxd6) 36. Nh4 {[%emt 0:01:13]} (36. Kf2 $11) 36... Ra6 {[%emt 0:00:31]} (36... Nd7 $6 37. Nf3 $11) 37. Nf3 {[%emt 0:00:34]} Ra8 {[%emt 0:00:00]} (37... Nxa4 $1 $17 38. Rxa4 Bxa4 39. Rxa4 fxg4 40. hxg4 b6 41. Bd6+ Nxd6 42. exd6+ Kxd6) 38. Nh2 {[%emt 0:00:14]} (38. Kf2 $11 {remains equal.}) 38... Ra6 {[%emt 0:01:14]} (38... Nxa4 $1 $17 39. Kd2 (39. Rxa4 Bxa4 40. Rxa4 b6 $17) 39... Nxc5 40. dxc5 a4) 39. h4 {[%emt 0:00:24]} (39. Nf3 $11) 39... Ra8 {[%emt 0:00:32]} (39... Nd7 40. Ba3 $11) 40. h5 {[%emt 0:00:27]} ({Better is} 40. g5 $15) 40... gxh5 {[%emt 0:01:33]} (40... Nxa4 $1 $17 41. Rxa4 Bxa4 42. Rxa4 b6) 41. gxf5 $11 {[%emt 0:00:01]} exf5 {[%emt 0:00:02]} (41... Rg2 $2 42. fxe6 $1 Rxh2 43. f5 Nxa4 44. Rxa4 $18) 42. Bxh5 {[%emt 0:00:14]} Rg2 {[%emt 0:00:20]} (42... Nxa4 $1 $11 43. Rxa4 Bxa4 44. Rxa4 b6) 43. Nf3 {[%emt 0:00:23]} ({White should try} 43. Nf1 $1 $16) 43... Nd7 {[%emt 0:01:01]} (43... Nxa4 $1 $14 44. Rxa4 Bxa4 45. Rxa4 Rxc2) 44. Rg1 {[%emt 0:00:52] The board is on fire.} Rxg1 {[%emt 0:00:20]} 45. Nxg1 {[%emt 0:00:01]} Nxc5 {[%emt 0:00:16]} 46. dxc5 {[%emt 0:00:01]} Ne7 {[%emt 0:00:02]} 47. Nf3 {[%emt 0:00:48]} (47. Ne2 $16) 47... Rg8 {[%emt 0:00:15][%cal Od5d4]} 48. Kf2 {[%emt 0:00:05]} (48. Ra1 {with more complications.} Rg2 49. Nd4 Rh2 50. Bf3) 48... Kd7 {[%emt 0:02:01]} (48... Ng6 $11 {keeps the balance.} 49. Ke3 Ne7) 49. Nd4 $16 {[%emt 0:00:11]} Rg7 {[%emt 0:00:25]} (49... Kc7 $16 50. Ra1 Kd8) 50. Rb2 {[%emt 0:00:24] Nxc6 is the strong threat.} Kc8 {[%emt 0:00:52]} 51. Ra2 {[%emt 0:00:13]} Kd7 $1 {[%emt 0:00:08]} 52. Ra1 {[%emt 0:00:06]} Kc8 {[%emt 0:00:30]} 53. Ne6 {[%emt 0:01:32]} (53. Nxc6 $1 $18 bxc6 54. Rh1) 53... Rg8 {[%emt 0:00:06] [#]} 54. Nd4 {[%emt 0:00:30]} (54. Bf7 $1 $16 {[%cal Rf7g8]} Rh8 55. Bh5) 54... Rg7 $18 {[%emt 0:00:09]} 55. Bf3 {[%emt 0:01:39]} Rg8 {[%emt 0:01:33]} 56. Rb1 {[%emt 0:00:16]} Kc7 {[%emt 0:00:23]} 57. Rh1 {[%emt 0:01:09]} Rg6 {[%emt 0:00:25]} (57... Rh8 $16) 58. Bh5 {[%emt 0:00:13]} Rg8 {[%emt 0:00:13]} 59. Bf7 $36 {[%emt 0:00:30][%csl LRg8,LRh6][%mdl 2048] White is on the roll.} Rh8 {[%emt 0:00:12]} 60. Be6 {[%emt 0:00:13] White has more active pieces.} Bxa4 {[%emt 0:00:41]} (60... h5 $16 {is a better defense.}) 61. Ra1 {[%emt 0:00:23]} ({And not} 61. Nxf5 Nxf5 62. Bxf5 Rf8 $17) 61... Bd7 {[%emt 0:00:30]} 62. Bxd7 {[%emt 0:00:20]} ({Don't take} 62. Rxa5 $6 Nc6 63. Bxd7 Nxa5 64. Bxf5 Ra8 $16) 62... Kxd7 {[%emt 0:00:00]} 63. Rxa5 {[%emt 0:00:00][%mdl 4096] Endgame KRN-KRN} h5 {[%emt 0:01:31]} 64. c6+ {[%emt 0:01:02]} (64. Rb5 $18 {and White stays clearly on top.} Kc8 65. Rb6) 64... Nxc6 $2 {[%emt 0:00:39] Loses the game.} (64... Kc7 $16 {was worth a try.}) 65. Rxd5+ {[%emt 0:00:02]} Kc7 {[%emt 0:00:27]} 66. Nxf5 {[%emt 0:00:17]} Rf8 {[%emt 0:00:28]} 67. e6 {[%emt 0:00:27]} Rf6 {[%emt 0:00:15]} 68. Rd7+ {[%emt 0:00:21]} Kb6 {[%emt 0:00:41] [#]} 69. e7 {[%emt 0:02:21]} (69. Rd6 $142 $1) 69... Re6 $2 {[%emt 0:00:31]} (69... Nxe7 70. Nxe7 Rxf4+ 71. Ke3 Rf8) 70. Rd6 {[%emt 0:01:02]} Rxd6 {[%emt 0:00:40]} 71. e8=Q {[%emt 0:00:04]} (71. e8=B $2 {loses.} Rd2+ 72. Ke1 Rxc2 $19) 71... Rd2+ {[%emt 0:00:04]} 72. Kg3 {[%emt 0:00:43] Threatening mate with Qe3+.} Rxc2 {[%emt 0:00:04]} 73. Qe3+ {[%emt 0:00:08]} Kc7 {[%emt 0:00:03]} 74. Nd4 {[%emt 0:00:11] White mates.} h4+ {[%emt 0:00:43]} 75. Kxh4 {[%emt 0:00:11]} Nxd4 {[%emt 0:00:03]} 76. Qxd4 {[%emt 0:00:07]} b5 {[%emt 0:00:02]} 77. Qc5+ {[%emt 0:00:22]} Kd8 {[%emt 0:00:09]} 78. Qf8+ {[%emt 0:00:02]} Kc7 {[%emt 0:00:06]} 79. Qg7+ {[%emt 0:00:06]} Kb8 {[%emt 0:00:15]} 80. Qg8+ {[%emt 0:00:07] Weighted Error Value: White=0.37/Black=0.31} 1-0